lending/lending_fUSD_20240509
["ID","MTS","AMOUNT","RATE_DAILY","PERIOD"]
[326731414,1715289032939,-262.75159511,0.00016954,2]
[326731416,1715289032949,-171.06171806,0.00017059,2]
[326731418,1715289032958,-200.0,0.00018298,2]
[326731420,1715289032967,-299.99,0.00018298,4]
[326731422,1715289032977,-500.0,0.000185,2]
[326731424,1715289032987,-150.39,0.00019178,2]
[326731425,1715289032997,-275.77104378,0.00021199,2]
[326731427,1715289033009,-585.5556651,0.00021199,2]
[326731428,1715289033018,-2264.0,0.000212,3]
[326731429,1715289033028,-150.0,0.00023189,5]
[326731430,1715289033037,-499.99,0.00024752,2]
[326731431,1715289033047,-2438.75626202,0.00025418,2]
[326731432,1715289033056,-1000.0,0.00025419,2]
[326731433,1715289033066,-300.0,0.00027295,2]
[326731434,1715289033076,-617.48451393,0.00027395,2]
[326731436,1715289033086,-317.27575734,0.00027396,2]
[326731438,1715289033101,-300.0,0.00027397,2]
[326731440,1715289033112,-200.0,0.00027447,2]
[326731442,1715289033122,-171.06171806,0.0002848,2]
[326731444,1715289033133,-150.0,0.00029061,120]
[326731446,1715289033144,-1748.69131799,0.00029999,5]
[326731448,1715289033154,-1607.92618494,0.0003,4]
[326731450,1715289033165,-155.0,0.0003,2]
[326731452,1715289033175,-2170.82789106,0.0003,10]
[326731454,1715289033185,-5681.44871975,0.00030838,2]
[326731456,1715289033195,-1852.42,0.0003084,2]
[326731458,1715289033205,-150.0,0.00030993,2]
[326731460,1715289033215,-250.0,0.00030993,2]
[326731462,1715289033225,-1333.33334504,0.00031093,2]
[326731464,1715289033235,-170.16,0.000311,120]
[326731466,1715289033246,-150.0,0.00031193,120]
[326731468,1715289033255,-2000.0,0.00031293,2]
[326731471,1715289033266,-2000.0,0.00031494,3]
[326731473,1715289033276,-8357.45,0.0003151,61]
[326731475,1715289033286,-333.01810814,0.00032,4]
[326731476,1715289033296,-150.39,0.00032268,2]
[326731478,1715289033306,-250.0,0.00032876,14]
[326731480,1715289033316,-500.0,0.00032876,15]
[326731483,1715289033328,-297.31760661,0.00032876,16]
[326731485,1715289033338,-184.0156671,0.00032935,7]
[326731486,1715289033349,-150.0,0.00033,2]
[326731489,1715289033359,-153.85,0.000335,2]
[326731492,1715289033370,-153.85,0.000335,2]
[326731495,1715289033381,-153.85,0.000335,2]
[326731498,1715289033391,-153.85,0.000335,2]
[326731500,1715289033408,-153.85,0.000335,2]
[326731503,1715289033419,-153.85,0.000335,2]
[326731505,1715289033430,-153.85,0.000335,2]
[326731507,1715289033440,-153.85,0.000335,2]
[326731509,1715289033452,-163.89,0.00034297,2]
[326731510,1715289033464,-152.0,0.00034319,3]
[326731511,1715289033474,-150.0,0.00034503,2]
[326731512,1715289033486,-826.94895566,0.0003452,6]
[326731513,1715289033496,-185.97,0.00034673,120]
[326731514,1715289033506,-250.0,0.00034677,2]
[326731515,1715289033516,-10304.4,0.00034954,2]
[326731516,1715289033528,-1605.0311373,0.00035,4]
[326731517,1715289033537,-9100.0,0.00035,2]
[326731518,1715289033548,-1333.33334502,0.00035057,2]
[326731519,1715289033559,-329.08,0.00035444,2]
[326731520,1715289033568,-153.85,0.000356,3]
[326731521,1715289033579,-153.85,0.000356,3]
[326731522,1715289033591,-153.85,0.000356,3]
[326731523,1715289033601,-153.85,0.000356,3]
[326731524,1715289033611,-153.85,0.000356,3]
[326731525,1715289033622,-153.85,0.000356,3]
[326731526,1715289033633,-153.85,0.000356,3]
[326731527,1715289033644,-153.85,0.000356,3]
[326731528,1715289033653,-153.72836646,0.00035967,7]
[326731529,1715289033663,-500.0,0.00036102,10]
[326731530,1715289033672,-500.0,0.00036102,10]
[326731531,1715289033683,-174.99,0.00036685,120]
[326731532,1715289033693,-184.01566711,0.0003677,7]
[326731533,1715289033703,-153.72836646,0.00036787,7]
[326731534,1715289033714,-156.54295098,0.00036795,7]
[326731535,1715289033724,-319.87268704,0.00037,2]
[326731536,1715289033734,-2380.0,0.00037,60]
[326731537,1715289033753,-500.0,0.00037,2]
[326731538,1715289033763,-200.0,0.00037,2]
[326731539,1715289033773,-2000.0,0.00037,2]
[326731540,1715289033784,-153.72836648,0.0003707,7]
[326731541,1715289033794,-500.0,0.00037198,10]
[326731542,1715289033804,-500.0,0.00037198,10]
[326731543,1715289033815,-157.06499759,0.00037262,7]
[326731544,1715289033825,-153.85,0.000376,3]
[326731545,1715289033835,-153.85,0.000376,3]
[326731546,1715289033846,-153.85,0.000376,3]
[326731547,1715289033856,-153.85,0.000376,3]
[326731548,1715289033867,-153.85,0.000376,3]
[326731549,1715289033878,-153.85,0.000376,3]
[326731550,1715289033890,-153.85,0.000376,3]
[326731551,1715289033900,-153.85,0.000376,3]
[326731552,1715289033910,-7349.58000359,0.00037852,5]
[326731553,1715289033920,-3388.77,0.00037998,4]
[326731554,1715289033930,-3572.91715432,0.00037998,4]
[326731555,1715289033941,-1259.20478669,0.00037998,4]
[326731556,1715289033951,-14528.5598462,0.00037999,4]
[326731557,1715289033961,-50000.0,0.00038,28]
[326731558,1715289033972,-2551.64597575,0.00038194,2]
[326731559,1715289033981,-284.12116106,0.00038294,10]
[326731560,1715289033992,-500.0,0.00038294,10]
[326731561,1715289034002,-152.0,0.00038564,4]
[326731562,1715289034012,-2551.64597569,0.00038657,2]
[326731563,1715289034022,-439.0,0.00038993,20]
[326731564,1715289034032,-23141.70749962,0.00039,29]
[326731565,1715289034046,-1493.30946859,0.00039,29]
[326731566,1715289034059,-4869.87206032,0.00039,29]
[326731567,1715289034071,-479.84771151,0.00039,29]
[326731568,1715289034084,-299.99,0.00039,29]
[326731569,1715289034096,-565.71483424,0.00039,29]
[326731570,1715289034109,-8047.54421753,0.00039,29]
[326731571,1715289034121,-2144.45724868,0.00039,29]
[326731572,1715289034136,-801.07990242,0.00039,29]
[326731573,1715289034149,-1500.0,0.00039,29]
[326731574,1715289034164,-4243.84407077,0.00039,29]
[326731575,1715289034179,-280.83854349,0.00039,29]
[326731576,1715289038972,-1509.11685064,0.00039,29]
[326731594,1715289039992,-622.67759219,0.00039,29]
[326731595,1715289040004,-1333.33334502,0.00039021,2]
[326731596,1715289040018,-2551.64597569,0.00039121,2]
[326731597,1715289040031,-500.0,0.0003939,10]
[326731598,1715289040043,-439.0,0.00039395,20]
[326731599,1715289040055,-150.0,0.000395,10]
[326731600,1715289040076,-2551.64597569,0.00039584,2]
[326731601,1715289040087,-153.85,0.000397,3]
[326731602,1715289040103,-153.85,0.000397,3]
[326731603,1715289040117,-153.85,0.000397,3]
[326731604,1715289040127,-153.85,0.000397,3]
[326731605,1715289040142,-153.85,0.000397,3]
[326731606,1715289040153,-153.85,0.000397,3]
[326731607,1715289040165,-153.85,0.000397,3]
[326731608,1715289040189,-153.85,0.000397,3]
[326731609,1715289040201,-439.0,0.00039797,20]
[326731610,1715289040213,-162.5137538,0.00039899,2]
[326731611,1715289040226,-171.94950786,0.000399,13]
[326731612,1715289040238,-1656.75763246,0.000399,13]
[326731613,1715289040250,-191.71365044,0.000399,2]
[326731614,1715289040261,-1000.0,0.000399,7]
[326731615,1715289040272,-7500.0,0.000399,2]
[326731616,1715289040283,-171.06171806,0.000399,2]
[326731617,1715289040295,-199.175217,0.000399,2]
[326731618,1715289040306,-153.16368911,0.000399,6]
[326731619,1715289040317,-150.0,0.00039926,120]
[326731620,1715289040328,-711.54040194,0.00039996,15]
[326731621,1715289040339,-155.0,0.00039996,4]
[326731622,1715289040350,-788.38579576,0.00039998,4]
[326731623,1715289040361,-3072.92794834,0.00039998,30]
[326731624,1715289040372,-1015.99744603,0.00039998,30]
[326731625,1715289040383,-377.47756051,0.00039998,4]
[326731626,1715289040395,-217.06896693,0.00039998,4]
[326731627,1715289040406,-2219.01154752,0.00039998,2]
[326731628,1715289040422,-167.63437116,0.00039998,4]
[326731629,1715289040433,-2325.27290029,0.00039998,4]
[326731630,1715289040445,-236.92766269,0.00039998,4]
[326731631,1715289040456,-4421.03246962,0.00039998,4]
[326731632,1715289040468,-5555.24404801,0.00039998,4]
[326731633,1715289040479,-370.59505344,0.00039998,4]
[326731634,1715289040491,-1246.5281018,0.00039998,4]
[326731635,1715289040504,-155.0,0.00039998,4]
[326731636,1715289040515,-324.37887832,0.00039999,4]
[326731637,1715289040526,-5266.7635262,0.00039999,4]
[326731638,1715289040537,-35311.38008095,0.00039999,4]
[326731639,1715289040547,-1000.0,0.00039999,2]
[326731640,1715289040558,-59325.34252844,0.00039999,15]
[326731641,1715289041946,-1078602.06096606,0.00039999,15]
[326731642,1715289041978,-50000.0,0.0004,30]
[326731643,1715289041989,-50000.0,0.0004,20]
[326731644,1715289042000,-1145743.1315442,0.0004,14]
[326731645,1715289042013,-6904.91767507,0.0004,14]
[326731646,1715289042026,-840.71707407,0.0004,14]
[326731647,1715289042039,-386.32094832,0.0004,14]
[326731648,1715289042910,-149621.32430183,0.0004,14]
[326731649,1715289042922,-54782.6229664,0.0004,14]
[326731650,1715289042934,-2723.68358874,0.0004,14]
[326731651,1715289042946,-758.22999745,0.0004,14]
[326731652,1715289042958,-452.17607096,0.0004,14]
[326731653,1715289042970,-280.26021866,0.0004,14]
[326731654,1715289042984,-1478.532,0.0004,14]
[326731657,1715289045879,-1804.07344843,0.0004,14]
[326731661,1715289045893,-406.7734298,0.0004,14]
[326731667,1715289045905,-18526.95481102,0.0004,14]
[326731693,1715289046740,-2475.64,0.0004,14]
[326731698,1715289047315,-15029.89346364,0.0004,14]
[326731700,1715289047328,-6341.30930635,0.0004,14]
[326731703,1715289047344,-969.79696864,0.0004,14]
[326731704,1715289047358,-1372.13278,0.0004,14]
[326731705,1715289047372,-1520.95,0.0004,14]
[326731706,1715289047387,-3150.9647,0.0004,14]
[326731707,1715289047400,-296.26673161,0.0004,14]
[326731708,1715289048023,-108.23818169,0.0004,14]
[326731709,1715289048035,-905.72771757,0.0004,14]
[326731710,1715289048048,-306.21779093,0.0004,14]
[326731711,1715289048063,-335551.61150759,0.0004,14]
[326731712,1715289048075,-483.87719183,0.0004,14]
[326731713,1715289048088,-37886.14156968,0.0004,14]
[326731716,1715289048130,-110544.86111945,0.0004,14]
[326731717,1715289048143,-1257.26,0.0004,14]
[326731720,1715289057624,1644.01126063,0.00011305,2]
[326731721,1715289061994,361.70450967,0.00011305,2]
[326731722,1715289062700,163.21884329,0.00011305,2]
[326731723,1715289418026,2543.95918335,0.00011696,2]
[326731724,1715289474928,-1052.26065491,0.00011793,2]
[326731725,1715289474952,-265.97975764,0.00011794,2]
[326731726,1715289474977,-234.69981702,0.00011797,2]
[326731727,1715289475001,-3024.88433628,0.00011996,2]
[326731728,1715289475027,-155.91324332,0.00011997,2]
[326731729,1715289475053,-4737.626702,0.00011997,2]
[326731730,1715289475079,-2806.53109869,0.00011998,2]
[326731731,1715289475103,-15043.99545481,0.00012,2]
[326731735,1715289689307,-3024.88433628,0.00013594,2]
[326731736,1715289689556,-1052.26065491,0.00013595,2]
[326731737,1715289689580,-302.08819502,0.00013595,2]
[326731738,1715289689605,-200.69504957,0.00013596,2]
[326731739,1715289689633,-1787.2571842,0.00013596,2]
[326731740,1715289689657,-150.0,0.00013597,2]
[326731741,1715289689683,-15638.2608957,0.00013597,2]
[326731743,1715289696174,-19682.74235606,0.00013597,2]
[326731744,1715289696200,-2472.70395962,0.00013598,2]
[326731745,1715289711737,-255.46383098,0.00013596,2]
[326731746,1715289711762,-218.15277935,0.00013597,2]
[326731747,1715289711785,-1681.82970535,0.00013598,2]
[326731748,1715289713193,-2155.44631568,0.00013598,2]
[326731749,1715289714152,-2155.44631568,0.00013598,2]
[326731750,1715289714841,-2155.44631568,0.00013598,2]
[326731751,1715289715491,-1013.52738799,0.00013598,2]
[326731752,1715289715514,-155.44631568,0.000136,2]
[326731756,1715290144463,5020.58,0.00025,120]
[326731757,1715290231519,-1037.70360246,0.00014,2]
[326731760,1715290231530,-1237.7829614,0.00015,2]
[326731762,1715290231543,-528.80492955,0.00015,2]
[326731765,1715290231552,-49.75468875,0.00016712,2]
[326731774,1715290231795,-125.70531125,0.00016712,2]
[326731775,1715290232031,-432.0499,0.00016852,2]
[326731776,1715290232041,-3024.88433628,0.00017807,2]
[326731777,1715290232050,-499.99,0.00017808,2]
[326731778,1715290232060,-392.38505976,0.000185,2]
[326731779,1715290232069,-4751.79,0.000185,2]
[326731780,1715290232078,-159.03,0.00019178,2]
[326731781,1715290232087,-150.59,0.00019178,2]
[326731782,1715290232096,-840.44,0.00019452,2]
[326731783,1715290232106,-269.33,0.00019452,2]
[326731784,1715290232115,-2608.38966738,0.0002,2]
[326731786,1715290232126,-443.73094514,0.0002,2]
[326731787,1715290232135,-175.93183996,0.0002,2]
[326731789,1715290232144,-861.32670888,0.0002,2]
[326731791,1715290232154,-622.0,0.000212,3]
[326731793,1715290232163,-150.0,0.00023249,5]
[326731795,1715290232172,-2438.75626202,0.00025,2]
[326731797,1715290232182,-1749.0834379,0.00026459,5]
[326731799,1715290232191,-155.0,0.00026708,2]
[326731801,1715290232200,-175.58,0.00027383,2]
[326731803,1715290232210,-164.25,0.00027434,2]
[326731805,1715290232219,-155.00408411,0.00028223,2]
[326731807,1715290232229,-1662.336,0.00028514,2]
[326731809,1715290232238,-395.68874218,0.0002864,2]
[326731812,1715290232251,-6892.62269742,0.0002864,2]
[326731814,1715290232260,-622.50002225,0.00028646,2]
[326731816,1715290232270,-798.59335519,0.00028646,2]
[326731818,1715290232279,-265.47965823,0.00028648,2]
[326731820,1715290232289,-3876.01243216,0.00028648,2]
[326731822,1715290232298,-156.4949031,0.00028648,2]
[326731824,1715290232307,-4732.93562249,0.00028649,2]
[326731826,1715290232316,-406.5353,0.00028795,10]
[326731828,1715290232325,-500.0,0.00029,120]
[326731830,1715290232335,-520.77,0.00029025,2]
[326731832,1715290232344,-2000.0,0.00029033,3]
[326731834,1715290232353,-277.77,0.00029079,2]
[326731836,1715290232362,-1663.1,0.00029096,2]
[326731838,1715290232370,-597.41220328,0.00029096,2]
[326731840,1715290232382,-2153.58779672,0.00029096,2]
[326731842,1715290232391,-84.60465802,0.00029096,2]
[326731844,1715290232402,-492.93534198,0.00029096,2]
[326731846,1715290232411,-250.0,0.00029096,2]
[326731848,1715290232420,-357.46,0.00029168,120]
[326731850,1715290232430,-1173.86704745,0.00029197,2]
[326731852,1715290232441,-1178.45951756,0.00029197,2]
[326731855,1715290232451,-1711.58343499,0.00029197,2]
[326731857,1715290232461,-175.3,0.00029581,2]
[326731859,1715290232471,-175.83,0.00029675,2]
[326731861,1715290232480,-200.0,0.00029675,2]
[326731863,1715290232489,-1894.44581524,0.00029675,2]
[326731865,1715290232498,-368.32778202,0.00029675,2]
[326731867,1715290232507,-1770.07136556,0.00029676,2]
[326731869,1715290232516,-1259.16438446,0.00029676,2]
[326731871,1715290232525,-155.0,0.00029676,2]
[326731873,1715290232534,-155.0,0.00029677,2]
[326731875,1715290232543,-6230.23790906,0.00029677,2]
[326731877,1715290232552,-5174.91787188,0.00029677,2]
[326731879,1715290232562,-358.48884391,0.00029677,2]
[326731881,1715290232571,-12278.56,0.00029678,2]
[326731883,1715290232579,-250.0,0.00029712,2]
[326731885,1715290232588,-200.0,0.00029726,2]
[326731887,1715290232598,-500.0,0.00029803,2]
[326731889,1715290232607,-1037.38,0.00029859,2]
[326731891,1715290232616,-167.0,0.0002986,2]
[326731893,1715290232625,-167.0,0.00029952,2]
[326731895,1715290232634,-243.2950639,0.0003,2]
[326731897,1715290232643,-19366.7269474,0.0003,4]
[326731899,1715290232652,-2170.82789106,0.0003,10]
[326731900,1715290232661,-500.0,0.0003,120]
[326731902,1715290232670,-500.0,0.0003,2]
[326731904,1715290232679,-1291.3552,0.00030127,2]
[326731906,1715290232689,-62.65046545,0.00030227,2]
[326731909,1715290232702,-23827.34953455,0.00030227,2]
[326731911,1715290232713,-150.0,0.000309,2]
[326731913,1715290232723,-13589.0,0.000309,3]
[326731915,1715290232732,-167.0,0.0003094,2]
[326731917,1715290232741,-244.22,0.00030997,120]
[326731919,1715290232750,-500.0,0.00031,120]
[326731921,1715290232759,-177.09,0.00031035,3]
[326731923,1715290232769,-531.28,0.00031035,3]
[326731925,1715290232780,-300.0,0.00031045,2]
[326731927,1715290232790,-165.0,0.00031448,2]
[326731929,1715290232799,-2281.21925254,0.0003165,2]
[326731931,1715290232808,-354.17,0.0003169,3]
[326731933,1715290232817,-750.17982827,0.0003175,4]
[326731935,1715290232829,-17703.0,0.000319,5]
[326731937,1715290232839,-167.0,0.00031929,2]
[326731939,1715290232848,-4063.91,0.00031936,2]
[326731941,1715290232858,-333.01810814,0.00032,4]
[326731943,1715290232868,-4283.60756935,0.00032315,2]
[326731945,1715290232877,-167.0,0.00032324,2]
[326731947,1715290232886,-354.18,0.00032405,3]
[326731949,1715290232895,-300.0,0.00032414,2]
[326731951,1715290232904,-520.77,0.00032653,2]
[326731953,1715290232916,-2281.2192525,0.0003281,2]
[326731955,1715290232926,-357.46,0.00032814,120]
[326731957,1715290232935,-167.0,0.00032918,2]
[326731959,1715290232944,-516.63344706,0.00033,120]
[326731961,1715290232954,-167.17,0.00033017,2]
[326731963,1715290232964,-708.34,0.0003306,3]
[326731965,1715290232973,-248.2626,0.00033151,14]
[326731966,1715290232983,-154.78261684,0.00033165,7]
[326731967,1715290232992,-175.99612777,0.00033275,7]
[326731968,1715290233001,-207.0,0.00033401,2]
[326731969,1715290233011,-4283.60756933,0.00033401,2]
[326731970,1715290233020,-665.12957918,0.00033499,4]
[326731971,1715290233030,-154.15,0.000335,2]
[326731972,1715290233039,-151.0,0.00033696,2]
[326731973,1715290233049,-167.0,0.00033906,2]
[326731974,1715290233058,-2281.2192525,0.0003397,2]
[326731975,1715290233067,-248.2626,0.00033973,14]
[326731976,1715290233077,-158.58742094,0.00034011,7]
[326731977,1715290233086,-302.0,0.00034262,4]
[326731978,1715290233096,-164.25,0.00034292,2]
[326731979,1715290233105,-175.99612777,0.00034472,7]
[326731980,1715290233115,-4283.60756933,0.00034487,2]
[326731981,1715290233124,-10139.0,0.00034564,3]
[326731982,1715290233134,-175.99612777,0.00034632,7]
[326731983,1715290233143,-4063.91,0.00034676,2]
[326731984,1715290233152,-167.0,0.00034788,2]
[326731985,1715290233161,-615.92750633,0.0003479,2]
[326731986,1715290233170,-7799.23448418,0.0003479,2]
[326731987,1715290233179,-248.2626,0.00034795,14]
[326731988,1715290233189,-480.207737,0.000348,2]
[326731989,1715290233197,-720.311605,0.000348,2]
[326731990,1715290233207,-604.0,0.00034838,7]
[326731991,1715290233217,-244.22,0.00034872,120]
[326731992,1715290233226,-167.0,0.00034895,2]
[326731993,1715290233235,-789.18856072,0.0003508,2]
[326731994,1715290233245,-152.52645609,0.0003508,2]
[326731995,1715290233254,-153.63676658,0.00035084,7]
[326731996,1715290233263,-2281.2192525,0.0003513,2]
[326731997,1715290233274,-150.69,0.0003517,2]
[326731998,1715290233283,-150.69,0.0003517,2]
[326731999,1715290233294,-150.69,0.0003517,2]
[326732000,1715290233304,-165.71698125,0.00035179,2]
[326732001,1715290233314,-173.77373168,0.00035179,7]
[326732002,1715290233324,-162.5137538,0.00035179,2]
[326732003,1715290233334,-765.44621981,0.00035179,9]
[326732004,1715290233343,-203.5295398,0.00035179,2]
[326732005,1715290233354,-6787.6748,0.0003518,2]
[326732006,1715290233363,-55832.86362961,0.0003518,2]
[326732007,1715290233376,-4611.58520454,0.0003518,2]
[326732008,1715290233388,-10143.62111693,0.0003518,2]
[326732009,1715290233442,-1133.16129937,0.0003518,2]
[326732010,1715290233454,-377113.66602574,0.0003518,2]
[326732011,1715290237597,-716.8677167,0.00026707,2]
[326732013,1715290237607,-533.1322833,0.0003518,2]
[326732016,1715290237619,-62718.46787637,0.0003518,2]
[326732018,1715290237630,-92301.65137142,0.0003518,2]
[326732026,1715290237841,-444303.23479272,0.0003518,2]
[326732027,1715290237850,-150.69,0.00035271,2]
[326732028,1715290237860,-192.06864449,0.00035279,4]
[326732029,1715290237869,-281.94220496,0.00035279,4]
[326732030,1715290237878,-1880.65275733,0.00035279,4]
[326732031,1715290237887,-781.6756597,0.00035279,15]
[326732032,1715290237896,-780.68199828,0.00035279,2]
[326732033,1715290237919,-551.86154387,0.00035279,4]
[326732034,1715290237936,-1225.64253151,0.00035279,4]
[326732035,1715290237954,-618.22068598,0.00035279,4]
[326732037,1715290237975,-194.00301164,0.00035279,4]
[326732041,1715290237995,-12736.57642091,0.0003528,4]
[326732044,1715290238012,-109477.870467,0.00035281,7]
[326732046,1715290238030,-155.30354453,0.00035417,7]
[326732049,1715290238044,-4283.60756933,0.00035574,2]
[326732051,1715290238061,-154.15,0.000356,3]
[326732052,1715290238078,-960.415474,0.000356,2]
[326732053,1715290238098,-1200.519342,0.000356,2]
[326732054,1715290238112,-1680.72708,0.000356,2]
[326732055,1715290238128,-248.2626,0.00035616,14]
[326732058,1715290238143,-157.6555605,0.00035722,7]
[326732061,1715290238159,-175.99612777,0.00035972,7]
[326732063,1715290238172,-158.58742095,0.00035974,7]
[326732066,1715290238196,-150.59,0.00036008,2]
[326732069,1715290238211,-789.18856072,0.00036054,2]
[326732071,1715290238225,-500.0,0.00036102,10]
[326732074,1715290238239,-153.63676658,0.00036131,7]
[326732076,1715290238253,-868.27,0.00036215,2]
[326732078,1715290238267,-868.27,0.00036215,2]
[326732081,1715290238281,-414.85,0.00036215,2]
[326732082,1715290238295,-868.27,0.00036215,2]
[326732083,1715290238310,-868.27,0.00036215,2]
[326732084,1715290238325,-414.85,0.00036215,2]
[326732085,1715290238339,-414.85,0.00036215,2]
[326732086,1715290238353,-414.85,0.00036215,2]
[326732087,1715290238367,-414.85,0.00036215,2]
[326732088,1715290238382,-414.85,0.00036215,2]
[326732089,1715290238397,-414.85,0.00036215,2]
[326732090,1715290238413,-414.85,0.00036215,2]
[326732091,1715290238427,-414.85,0.00036215,2]
[326732092,1715290238442,-414.85,0.00036215,2]
[326732093,1715290238457,-414.85,0.00036215,2]
[326732094,1715290238473,-414.85,0.00036215,2]
[326732095,1715290238488,-414.85,0.00036215,2]
[326732096,1715290238502,-174.26,0.00036215,2]
[326732097,1715290238517,-827.6,0.00036215,2]
[326732098,1715290238531,-718.46,0.00036215,2]
[326732099,1715290238545,-326.32,0.00036215,2]
[326732100,1715290238560,-520.77,0.00036281,2]
[326732101,1715290238574,-162.51375376,0.00036285,2]
[326732102,1715290238589,-2281.2192525,0.0003629,2]
[326732103,1715290238604,-203.52953976,0.00036359,2]
[326732104,1715290238618,-248.2626,0.00036438,14]
[326732105,1715290238632,-357.46,0.0003646,120]
[326732106,1715290238647,-165.71698125,0.00036616,2]
[326732107,1715290238661,-4283.60756933,0.0003666,2]
[326732108,1715290238676,-152.52645609,0.00036785,2]
[326732109,1715290238691,-13369.0,0.00036927,2]
[326732110,1715290238705,-50000.0,0.00037,27]
[326732111,1715290238720,-2333.0,0.00037,60]
[326732112,1715290238734,-155.0,0.00037,2]
[326732113,1715290238748,-837.0,0.00037,2]
[326732114,1715290238763,-2000.0,0.00037,2]
[326732115,1715290238777,-749.69869669,0.00037,2]
[326732116,1715290238791,-487.14105415,0.00037,2]
[326732117,1715290238805,-500.0,0.00037,2]
[326732118,1715290238819,-789.18856072,0.00037029,2]
[326732119,1715290238837,-500.0,0.00037198,10]
[326732120,1715290238851,-248.2626,0.0003726,14]
[326732121,1715290238865,-162.51375376,0.00037392,2]
[326732122,1715290238882,-173.77373167,0.00037419,10]
[326732123,1715290238897,-2281.2192525,0.00037451,2]
[326732124,1715290238912,-252.02181648,0.00037519,4]
[326732125,1715290238927,-203.52953976,0.0003754,2]
[326732126,1715290238941,-154.15,0.000376,3]
[326732127,1715290238955,-158.15323034,0.00037646,7]
[326732128,1715290238971,-4283.60756933,0.00037746,2]
[326732129,1715290238985,-150.69,0.0003789,2]
[326732130,1715290238999,-706.86968625,0.00037896,4]
[326732131,1715290239014,-3090.25486695,0.00037896,4]
[326732132,1715290239029,-2266.21413518,0.00037896,4]
[326732133,1715290239045,-155.0,0.00037896,3]
[326732134,1715290239060,-168.1135179,0.00037896,4]
[326732135,1715290239075,-155.0,0.00037897,4]
[326732136,1715290239091,-155.85062154,0.00037897,4]
[326732137,1715290239106,-4270.37766422,0.00037897,4]
[326732138,1715290239121,-157.51876589,0.00037897,4]
[326732139,1715290239137,-323.79914288,0.00037897,4]
[326732140,1715290239153,-1000.0,0.00037897,4]
[326732141,1715290239168,-511.25508557,0.00037897,4]
[326732142,1715290239184,-237.17351593,0.00037897,4]
[326732143,1715290239199,-317.4316254,0.00037898,4]
[326732144,1715290239214,-155.26575215,0.00037898,4]
[326732145,1715290239230,-372.66134927,0.00037898,4]
[326732146,1715290239245,-11440.62743744,0.00037898,4]
[326732147,1715290239261,-155.0,0.00037898,2]
[326732148,1715290239275,-159.6029597,0.00037898,4]
[326732149,1715290239291,-709.85225591,0.00037898,15]
[326732150,1715290239306,-748.57599329,0.00037898,2]
[326732151,1715290239321,-1245.86175718,0.00037898,4]
[326732152,1715290239337,-217.13620234,0.00037898,4]
[326732153,1715290239352,-155.0,0.00037898,4]
[326732154,1715290239368,-239.42577122,0.00037898,4]
[326732155,1715290239383,-520.78958345,0.00037898,4]
[326732156,1715290239398,-155.54694532,0.00037898,4]
[326732157,1715290239414,-207.05329635,0.00037898,4]
[326732158,1715290239429,-315.06810533,0.00037898,4]
[326732159,1715290239441,-202.9117628,0.00037898,4]
[326732160,1715290239451,-335.36806641,0.00037898,4]
[326732161,1715290239461,-161.02195853,0.00037898,4]
[326732162,1715290239471,-208.17791052,0.00037898,4]
[326732163,1715290239480,-155.0,0.00037898,4]
[326732164,1715290239490,-156.0846489,0.00037898,4]
[326732165,1715290239500,-40480.5985,0.000379,2]
[326732166,1715290239509,-1605.0311373,0.00037999,4]
[326732167,1715290239826,-1607.92618494,0.00037999,5]
[326732168,1715290239864,-9100.0,0.00037999,2]
[326732169,1715290239879,-50000.0,0.00038,28]
[326732170,1715290239889,-361.8,0.00038,2]